bitfinex-derivatives/quotes_ETHF0:USTF0_20250803
["timestamp","ask_amount","ask_price","bid_price","bid_amount"]
[1754233794039,2.22011,3459.6,3459.5,1.1293]
[1754233794431,1.76426,3459.3,3459.2,1.5876]
[1754233794633,1.76426,3459.3,3459.0,3.2078]
[1754233794829,1.25116,3459.3,3459.2,0.6498]
[1754233795036,1.25116,3459.3,3459.0,3.2078]
[1754233795236,0.4559,3459.2,3459.0,3.2078]
[1754233795436,1.642,3459.1,3459.0,3.2078]
[1754233795637,1.642,3459.1,3459.0,4.6871]
[1754233795638,1.1861,3459.1,3459.0,4.6871]
[1754233795838,1.1861,3459.1,3459.0,5.6441]
[1754233796731,0.836,3459.1,3459.0,5.6441]
[1754233797640,1.1861,3459.1,3459.0,2.4363]
[1754233797939,1.642,3459.1,3459.0,0.4795]
[1754233799641,0.673,3458.6,3458.5,4.2076]
[1754233799832,1.1861,3458.6,3458.5,4.7063]
[1754233800343,1.1861,3458.6,3458.5,5.6441]
[1754233801134,0.3229,3458.6,3458.5,5.6441]
[1754233801738,0.836,3458.6,3458.5,5.6441]
[1754233802138,1.642,3458.6,3458.5,3.6873]
[1754233802340,1.1861,3458.3,3458.2,1.5876]
[1754233802543,2.22034,3458.2,3458.1,0.4795]
[1754233802736,2.22034,3458.2,3458.1,1.1293]
[1754233802935,1.25139,3457.9,3457.8,1.5876]
[1754233803146,2.22039,3457.9,3457.8,1.5876]
[1754233803837,3.2078,3458.3,3457.8,1.5876]
[1754233804040,4.3939,3458.3,3458.2,2.4363]
[1754233804341,4.3939,3458.3,3458.2,1.9376]
[1754233804542,4.8498,3458.3,3458.2,1.1293]
[1754233805339,3.5307,3458.3,3458.2,1.1293]
[1754233805542,1.09137,3458.6,3458.4,0.9782]
[1754233805746,0.836,3458.5,3458.4,0.9998]
[1754233805939,1.1861,3458.5,3458.4,0.9998]
[1754233806347,1.1861,3458.5,3458.4,2.4363]
[1754233806540,0.3229,3458.5,3458.4,2.4363]
[1754233806846,0.57824,3458.8,3458.4,0.9998]
[1754233807045,0.836,3458.7,3458.6,1.4985]
[1754233807247,0.836,3458.7,3458.6,2.4363]
[1754233807551,0.3229,3458.7,3458.6,2.4363]
[1754233807747,1.76434,3458.8,3458.7,2.4363]
[1754233808351,1.1861,3458.8,3458.7,2.4363]
[1754233808752,1.1861,3458.8,3458.7,1.9376]
[1754233809349,1.1861,3458.8,3458.7,2.4363]
[1754233810056,3.2078,3458.9,3458.7,3.01454]
[1754233810348,3.2078,3458.9,3458.8,2.1233]
[1754233810551,3.2078,3458.9,3458.8,2.4363]
[1754233810748,3.5307,3458.9,3458.8,2.4363]
[1754233811064,9.85183757,3458.9,3458.8,1.1293]
[1754233811258,10.29263757,3458.9,3458.8,1.1293]
[1754233811447,9.85183757,3458.9,3458.8,1.9376]
[1754233811647,9.85183757,3458.9,3458.4,1.4985]
[1754233811648,0.673,3458.5,3458.4,1.4985]
[1754233811853,1.1861,3458.5,3458.4,1.4985]
[1754233812247,0.57831,3458.4,3458.2,3.2078]
[1754233812452,1.1861,3458.3,3458.2,4.7954]
[1754233812758,1.1861,3458.3,3458.2,1.9376]
[1754233813145,1.6269,3458.3,3458.2,1.1293]
[1754233813550,1.6269,3458.3,3458.2,0.7925]
[1754233813854,0.57834,3458.2,3458.0,0.4583]
[1754233814056,1.1087,3458.1,3458.0,1.5859]
[1754233814257,1.5465,3457.9,3457.8,1.306]
[1754233814461,2.12401,3457.8,3457.7,3.6846]
[1754233814757,2.12491,3457.8,3457.7,3.6846]
[1754233815056,2.12491,3457.8,3457.7,4.3354]
[1754233815449,2.12491,3457.8,3457.7,3.6846]
[1754233815651,2.12491,3457.8,3457.7,4.3354]
[1754233816357,2.12491,3457.8,3457.7,5.6436]
[1754233816358,1.1087,3457.8,3457.7,5.6436]
[1754233817354,1.1064,3457.8,3457.7,5.6436]
[1754233817753,1.3737,3457.9,3457.8,2.4358]
[1754233817951,0.57836,3458.1,3457.9,1.4598]
[1754233818156,3.6731,3458.4,3457.8,0.976]
[1754233818157,1.1078,3458.3,3458.2,0.6508]
[1754233818362,1.68702,3458.3,3458.2,1.1357]
[1754233818862,1.68702,3458.3,3458.2,1.6125]
[1754233819757,2.12482,3458.3,3458.2,0.4768]
[1754233820358,1.68709,3457.9,3457.8,1.6125]
[1754233820764,1.68709,3457.9,3457.8,2.4358]
[1754233822164,1.68709,3457.9,3457.8,1.9377]
[1754233823658,1.68709,3457.9,3457.8,2.4358]
[1754233824766,1.68709,3457.9,3457.8,1.9377]
[1754233824961,2.12489,3457.9,3457.8,0.7833]
[1754233825162,2.12489,3457.9,3457.8,0.4768]
[1754233825664,2.12494,3457.6,3457.5,0.3065]
[1754233825862,2.12494,3457.6,3457.5,0.6508]
[1754233826261,2.12494,3457.6,3457.5,1.1276]
[1754233826566,1.68714,3457.6,3457.5,2.4358]
[1754233827067,3.2078,3457.6,3457.5,0.6508]
[1754233827371,0.4653,3457.4,3457.0,2.53754]
[1754233827564,0.57847,3457.5,3457.4,0.976]
[1754233827762,0.90847,3457.5,3457.4,1.959]
[1754233827967,1.37377,3457.5,3457.4,2.4358]
[1754233828166,1.68487,3457.5,3457.4,2.4358]
[1754233828366,1.68717,3457.5,3457.4,2.4358]
[1754233828664,2.12497,3457.5,3457.4,1.1276]
[1754233828865,2.12497,3457.5,3457.4,0.4768]
[1754233829068,1.68717,3457.5,3457.4,1.9377]
[1754233829366,3.2078,3457.6,3457.5,0.4849]
[1754233829662,3.8489,3458.0,3457.9,0.976]
[1754233829867,4.3142,3458.0,3457.9,2.4358]
[1754233830165,0.6411,3457.6,3457.5,1.6525]
[1754233830464,0.7953,3457.6,3457.5,2.4358]
[1754233830668,0.4662,3457.9,3457.8,0.3443]
[1754233830964,0.7962,3457.9,3457.8,2.4358]
[1754233831166,1.1073,3457.9,3457.8,2.4358]
[1754233832564,0.7953,3457.9,3457.8,2.4358]
[1754233832760,0.33,3457.9,3457.8,2.4358]
[1754233833269,3.2078,3458.0,3457.8,0.976]
[1754233833574,3.78611,3458.4,3458.3,2.4358]
[1754233834072,8.66573757,3459.0,3458.3,2.4358]
[1754233834261,0.4653,3459.7,3459.3,0.976]
[1754233834262,3.2078,3459.4,3459.3,0.976]
[1754233834566,5.13354254,3459.4,3459.3,1.4528]
[1754233834774,4.7543,3459.4,3459.3,1.1276]
[1754233835266,4.3165,3459.4,3459.3,2.4358]
[1754233835461,3.2078,3459.4,3459.3,2.4358]
[1754233836164,0.7953,3459.6,3459.5,2.4358]
[1754233836868,5.45793757,3459.7,3459.5,0.976]
[1754233837069,2.01019,3460.3,3460.2,2.4358]
[1754233837369,1.4322,3460.3,3460.2,2.4358]
[1754233837666,5.90633757,3460.5,3459.6,3.2078]
[1754233837667,5.45793757,3460.5,3460.4,0.976]
[1754233837969,6.87316694,3460.5,3460.4,2.4358]
[1754233838168,7.33853757,3460.5,3460.4,2.4358]
[1754233838368,1.8806,3460.5,3460.4,2.4358]
[1754233838563,3.2078,3461.0,3460.9,0.3443]
[1754233838869,3.5378,3461.0,3460.9,2.4358]
[1754233839567,3.2078,3461.0,3460.9,2.4358]
[1754233840072,6.50107757,3461.3,3460.9,0.976]
[1754233840367,3.7856,3461.5,3461.2,0.976]
[1754233840570,5.3404,3461.5,3461.4,2.4358]
[1754233841675,5.6662,3461.5,3461.4,2.4358]
[1754233842673,2.4584,3461.5,3461.4,2.4358]
[1754233843675,1.23156,3460.5,3460.4,1.955]
[1754233844070,1.70486,3460.5,3460.4,2.4497]
[1754233844468,2.48286,3460.5,3460.4,2.4497]
[1754233846480,2.01706,3460.5,3460.4,2.4497]
[1754233846770,0.57793,3460.7,3460.5,2.1389]
[1754233846974,0.57791,3460.8,3460.7,2.4497]
[1754233847171,0.5779,3460.9,3460.7,2.4497]
[1754233847372,0.5779,3460.9,3460.8,2.4497]
[1754233847678,0.4733,3461.1,3460.8,2.4497]
[1754233847679,0.57787,3461.1,3461.0,1.4736]
[1754233847975,0.57783,3461.3,3461.2,2.4497]
[1754233848378,1.39183,3461.3,3461.2,2.4497]
[1754233848674,1.85763,3461.3,3461.2,2.4497]
[1754233849079,2.17053,3461.3,3461.2,2.4497]
[1754233849267,0.91859,3460.9,3460.8,3.854]
[1754233849474,7.94072757,3460.9,3460.8,0.6462]
[1754233849875,7.94072757,3460.9,3460.8,2.4497]
[1754233850071,2.48279,3460.9,3460.8,2.4497]
[1754233850376,0.91859,3460.9,3460.8,2.4497]
[1754233850871,1.39189,3460.9,3460.8,2.4497]
[1754233851275,2.01699,3460.9,3460.8,2.4497]
[1754233851473,2.48279,3460.9,3460.8,2.4497]
[1754233851775,0.57785,3461.2,3461.0,0.9668]
[1754233851970,0.57785,3461.2,3461.1,1.955]
[1754233852177,0.91855,3461.2,3461.1,2.4497]
[1754233853678,2.48275,3461.2,3461.1,2.4497]
[1754233853979,2.3318,3460.9,3460.8,0.8301]
[1754233854380,7.36283757,3460.9,3460.8,1.1409]
[1754233854579,7.36283757,3460.9,3460.8,1.6223]
[1754233854873,1.9049,3460.4,3460.3,0.8301]
[1754233855072,1.9049,3460.4,3460.3,1.6223]
[1754233855279,1.9049,3460.4,3460.3,1.9429]
[1754233856580,1.9049,3460.4,3460.3,1.1409]
[1754233856878,1.9049,3460.4,3460.3,2.4497]
[1754233857377,0.57794,3460.6,3460.5,0.9668]
[1754233857577,0.57794,3460.6,3460.5,2.4497]
[1754233857777,1.05123,3460.7,3460.5,2.4497]
[1754233857979,2.17063,3460.7,3460.6,2.4497]
[1754233858183,2.48283,3460.7,3460.6,2.4497]
[1754233859376,2.48283,3460.7,3460.6,1.9429]
[1754233859586,1.54377,3460.4,3460.3,0.9668]
[1754233859885,2.48287,3460.4,3460.3,1.9429]
[1754233860381,1.9049,3460.4,3460.3,1.9429]
[1754233860580,1.9049,3460.4,3460.3,2.4497]
[1754233860785,5.45793757,3460.6,3460.3,2.4497]
[1754233860982,7.36283757,3460.6,3460.5,0.9668]
[1754233861182,7.36283757,3460.6,3460.5,1.9429]
[1754233861383,7.36283757,3460.6,3460.5,2.4497]
[1754233862575,1.9049,3460.6,3460.5,2.4497]
[1754233863585,1.9049,3460.6,3460.5,1.9429]
[1754233866392,1.9049,3460.6,3460.5,2.4497]
[1754233867386,4.43927,3461.1,3461.0,0.9668]
[1754233867690,12.39630054,3461.1,3461.0,0.8301]
[1754233867989,3.30366297,3461.1,3461.0,2.4497]
[1754233868385,6.51146297,3461.1,3461.0,2.4497]
[1754233868790,3.30366297,3461.1,3461.0,2.4497]
[1754233869493,2.72579297,3461.1,3461.0,2.4497]
[1754233870385,5.93359297,3461.1,3461.0,2.4497]
[1754233871705,4.02869297,3461.1,3461.0,2.4497]
[1754233873100,3.2078,3461.1,3461.0,2.4497]
[1754233873299,2.00935,3461.8,3461.7,2.4497]
[1754233873495,3.47645477,3461.8,3461.7,2.4497]
[1754233873695,2.72619069,3461.8,3461.7,2.4383]
[1754233873896,5.68772014,3462.4,3461.7,2.4383]
[1754233873897,0.4563763,3462.6,3462.5,1.23122]
[1754233874092,3.57197038,3463.0,3462.5,1.23122]
[1754233874093,1.0,3463.0,3462.8,0.57757]
[1754233874397,3.60075853,3464.1,3463.6,0.57744]
[1754233874604,3.60075853,3464.1,3462.6,1.44402]
[1754233874605,0.4847,3464.1,3464.0,2.92623157]
[1754233874793,1.4413,3465.1,3464.0,2.33425556]
[1754233874996,0.4785,3465.2,3464.9,0.57722]
[1754233875191,0.4847,3465.1,3464.8,3.2078]
[1754233875396,0.57706,3465.9,3464.8,3.2078]
[1754233875695,0.4847,3465.4,3465.2,3.78497]
[1754233875894,0.4847,3465.4,3465.2,3.2078]
[1754233876089,0.57711,3465.6,3465.2,3.2078]
[1754233876299,1.4413,3465.2,3465.1,3.2078]
[1754233876495,2.01847,3465.2,3465.1,0.22298009]
[1754233876895,3.2078,3465.5,3464.7,3.2078]
[1754233876896,0.4781,3465.0,3464.7,3.2078]
[1754233877094,0.4847,3465.0,3464.8,0.2229]
[1754233877296,0.9632,3465.2,3464.7,3.2078]
[1754233877602,0.57726,3464.7,3464.3,3.2078]
[1754233877901,0.4847,3464.3,3463.8,3.2078]
[1754233878098,0.57737,3464.0,3463.8,3.2078]
[1754233878295,0.57737,3464.0,3463.4,3.2078]
[1754233878495,0.4847,3463.6,3463.4,3.2078]
[1754233878702,1.06208,3464.0,3463.4,3.4307]
[1754233879007,0.4847,3463.9,3463.8,3.2078]
[1754233879199,0.9632,3463.9,3463.4,3.4307]
[1754233879399,0.4785,3463.9,3463.8,3.2078]
[1754233879996,1.4413,3463.9,3463.8,3.2078]
[1754233880606,0.57741,3463.8,3463.4,3.2078]
[1754233880997,0.57744,3463.6,3463.5,0.1665]
[1754233881201,1.54064,3463.6,3463.5,0.1665]
[1754233881703,0.9632,3463.6,3463.5,0.1665]
[1754233881908,1.4413,3463.6,3463.5,0.1665]
[1754233882108,0.9632,3463.6,3463.5,0.1665]
[1754233882400,0.4847,3463.6,3463.5,0.1665]
[1754233882996,0.9632,3463.6,3463.5,0.1665]
[1754233883398,1.4413,3463.6,3463.5,0.1665]
[1754233884506,0.9632,3463.6,3463.5,0.1665]
[1754233885007,0.9632,3464.1,3463.8,0.1665]
[1754233885206,1.4413,3464.1,3464.0,3.2078]
[1754233887112,0.4847,3464.1,3464.0,3.3743]
[1754233888304,1.4413,3464.1,3464.0,3.3743]
[1754233888703,3.2078,3464.4,3463.6,3.2078]
[1754233889013,0.57744,3463.6,3463.1,3.2078]
[1754233889607,1.4413,3463.5,3463.1,3.3743]
[1754233889806,0.9566,3463.4,3463.1,3.3743]
[1754233890111,0.4781,3463.4,3463.1,3.3743]
[1754233890300,0.9566,3463.3,3463.1,3.3743]
[1754233890504,0.9632,3463.2,3463.1,3.3743]
[1754233890910,1.4413,3464.0,3463.2,0.1665]
[1754233891105,0.9632,3463.9,3463.8,0.1665]
[1754233891816,0.4847,3464.2,3463.8,0.3894]
[1754233892111,3.2078,3464.7,3463.7,3.2078]
[1754233892112,1.4413,3464.0,3463.7,3.78522]
[1754233892314,1.4413,3463.9,3463.7,3.95172]
[1754233892515,0.9566,3463.9,3463.8,0.1665]
[1754233892907,0.4781,3464.2,3463.9,0.57739]
[1754233893108,0.4785,3464.0,3463.9,0.1665]
[1754233893415,1.4413,3464.0,3463.9,0.1665]
[1754233893708,0.4781,3464.6,3464.2,0.57733]
[1754233893915,0.6174,3464.6,3464.5,1.33729]
[1754233894116,2.3924,3464.6,3464.5,1.11481865]
[1754233894808,1.9143,3464.6,3464.5,1.11481865]
[1754233895607,2.3924,3464.6,3464.5,1.11481865]
[1754233898515,2.3924,3464.6,3464.5,1.37604633]
[1754233899608,2.3924,3464.6,3464.5,1.20954633]
[1754233899815,2.3924,3464.6,3464.5,1.37604633]
[1754233900812,2.3924,3464.6,3464.5,1.41048341]
[1754233901015,2.3924,3464.6,3464.5,0.97768341]
[1754233901217,2.3924,3464.6,3464.5,1.41048341]
[1754233901406,1.9143,3464.6,3464.5,0.65048341]
[1754233901611,2.3924,3464.6,3464.5,1.41048341]
[1754233902006,1.6092,3464.6,3464.5,1.24398341]
[1754233902206,1.9143,3464.6,3464.5,1.41048341]
[1754233902419,2.3924,3464.6,3464.5,1.41048341]
[1754233903411,2.17593131,3464.6,3464.5,1.41048341]
[1754233904515,2.17593131,3464.6,3464.5,1.14925573]
[1754233904815,2.17593131,3464.6,3464.5,0.38925573]
[1754233905020,1.029,3464.3,3464.2,3.2078]
[1754233905221,2.0767,3464.3,3464.2,3.2078]
[1754233905414,2.6025,3464.3,3464.2,3.2078]
[1754233907019,3.2078,3464.9,3464.3,1.64882]
[1754233907020,0.3619,3464.4,3464.3,1.64882]
[1754233907319,1.8148,3464.4,3464.3,2.62042]
[1754233907516,0.3619,3464.8,3464.7,0.93454]
[1754233907725,0.78300643,3464.8,3464.7,2.62034]
[1754233909220,1.35110643,3464.8,3464.7,2.62034]
[1754233909525,1.30880643,3464.8,3464.7,2.62034]
[1754233909911,2.54400643,3464.8,3464.7,2.62034]
[1754233910115,2.6025,3464.7,3464.6,3.2078]
[1754233910315,3.17977,3464.7,3464.4,3.2078]
[1754233910521,2.6025,3464.5,3464.4,3.2078]
[1754233912013,2.1229,3464.5,3464.4,4.2793]
[1754233912212,1.5086,3464.8,3464.7,1.4701]
[1754233912821,2.6025,3464.8,3464.7,1.3168]
[1754233913116,1.5735,3464.7,3464.5,0.57729]
[1754233913322,2.6025,3464.6,3464.5,0.57729]
[1754233913721,2.6025,3464.6,3464.4,3.7851]
[1754233914019,2.6025,3464.5,3464.4,3.2078]
[1754233914820,1.02871305,3465.3,3464.5,0.3889]
[1754233915021,3.2078,3465.5,3464.8,3.2078]
[1754233915329,1.5086,3465.1,3465.0,1.0715]
[1754233915713,2.6025,3465.1,3465.0,1.3168]
[1754233915917,2.6025,3465.1,3464.8,3.78504]
[1754233916222,2.6025,3464.9,3464.8,4.85654]
[1754233916423,2.6025,3464.9,3464.8,5.10184]
[1754233916817,2.6025,3464.9,3464.8,5.25514]
[1754233917920,1.5086,3465.5,3464.9,0.3889]
[1754233918124,1.029,3465.5,3464.9,0.3889]
[1754233918327,1.029,3465.1,3465.0,1.64871]
[1754233918625,2.6025,3465.1,3465.0,1.64871]
[1754233918924,2.6025,3465.1,3465.0,1.0715]
[1754233919120,2.6025,3465.1,3465.0,0.6826]
[1754233919325,2.6025,3465.1,3464.8,3.93833]
[1754233919326,1.029,3464.9,3464.8,3.78503]
[1754233919621,2.6025,3464.9,3464.8,3.78503]
[1754233920626,2.6025,3464.9,3464.8,3.2078]
[1754233920922,2.6025,3464.9,3464.8,3.5651]
[1754233921121,2.6025,3464.9,3464.8,3.954]
[1754233921321,1.5086,3464.9,3464.8,5.10184]
[1754233921523,2.6025,3464.9,3464.8,5.10184]
[1754233922526,2.6025,3464.9,3464.8,3.8904]
[1754233922830,1.44277,3465.7,3464.3,0.573]
[1754233922831,1.029,3464.5,3464.4,3.2078]
[1754233923023,2.6025,3464.5,3464.4,3.2078]
[1754233923224,3.2078,3465.4,3464.4,3.5967]
[1754233923520,2.6025,3464.8,3464.7,1.89406]
[1754233923721,2.6025,3464.8,3464.7,0.6826]
[1754233923914,0.57722,3465.0,3464.4,3.2078]
[1754233923915,2.6025,3464.5,3464.4,3.2078]
[1754233924322,2.6025,3464.5,3463.5,42.2893]
[1754233924323,0.57742,3463.8,3463.5,3.2078]
[1754233924631,1.10326,3463.5,3463.1,3.2078]
[1754233924820,1.5735,3463.3,3463.2,0.3889]
[1754233925219,2.151,3463.3,3463.1,3.2078]
[1754233925421,0.4796,3463.1,3462.8,0.3889]
[1754233925629,0.5775,3463.3,3462.8,0.3889]
[1754233925630,1.5735,3462.9,3462.8,0.3889]
[1754233925825,1.22704584,3462.9,3462.8,0.3889]
[1754233926022,1.22704584,3462.9,3462.8,1.505]
[1754233926424,0.65894584,3462.9,3462.8,1.505]
[1754233927129,1.22704584,3462.9,3462.8,1.505]
[1754233927339,1.22704584,3462.9,3462.8,0.932]
[1754233927830,1.22704584,3462.9,3462.8,0.3889]
[1754233928730,2.25604584,3462.9,3462.8,0.3889]
[1754233928926,2.25604584,3462.9,3462.8,0.57757]
[1754233929727,1.029,3462.9,3462.7,3.2078]
[1754233930031,2.6025,3462.8,3462.7,3.2078]
[1754233932928,1.029,3462.4,3462.3,3.2078]
[1754233933136,1.029,3462.4,3461.9,3.2078]
[1754233933335,2.6025,3462.0,3461.9,3.2078]
[1754233933632,2.6339,3461.5,3461.4,3.2078]
[1754233933931,0.3044,3461.1,3461.0,0.573]
[1754233934129,2.6175,3461.1,3461.0,0.9561]
[1754233934331,2.6175,3461.1,3461.0,2.2442]
[1754233934536,2.6175,3461.1,3461.0,2.5526]
[1754233936032,2.6175,3461.1,3461.0,0.3831]
[1754233936433,2.6175,3461.1,3461.0,1.6712]
[1754233936637,2.6175,3461.1,3461.0,1.9796]
[1754233937439,2.6175,3461.1,3461.0,1.4474]
[1754233938235,2.6175,3461.1,3461.0,2.5265]
[1754233938541,1.0126,3461.1,3461.0,2.5265]
[1754233938840,0.3044,3461.1,3461.0,2.5265]
[1754233940338,1.2384,3461.1,3461.0,2.5265]
[1754233940636,1.7754,3461.1,3461.0,2.5265]
[1754233940840,2.6175,3461.1,3461.0,2.5265]
[1754233941135,2.6175,3461.1,3461.0,1.9796]
[1754233941336,2.6175,3461.1,3461.0,2.5265]
[1754233942236,2.6175,3461.1,3460.8,3.2078]
[1754233942438,2.6175,3460.9,3460.8,3.2078]
[1754233942850,2.6175,3460.9,3460.8,3.5909]
[1754233943637,2.6175,3460.9,3460.8,3.9563]
[1754233943834,2.6175,3461.4,3461.3,1.4474]
[1754233944133,1.59041,3461.4,3461.0,1.11007]
[1754233944328,1.0126,3461.0,3460.9,2.02528]
[1754233944633,2.6175,3461.0,3460.9,3.10438]
[1754233944839,1.0126,3461.0,3460.9,3.10438]
[1754233945140,0.3044,3461.0,3460.9,3.10438]
[1754233945342,2.6175,3461.3,3461.2,1.63474]
[1754233945532,2.1255,3461.3,3461.2,6.31214]
[1754233947133,2.1255,3461.3,3461.2,5.1874]
[1754233947134,2.6175,3461.3,3461.2,5.1874]
[1754233947330,1.1129,3461.2,3461.1,0.57785]
[1754233947533,2.6175,3461.2,3461.1,0.3831]
[1754233947738,2.6175,3461.2,3461.1,1.139]
[1754233948540,2.6175,3461.2,3461.1,2.5265]
[1754233948744,2.18267,3461.7,3461.2,0.57784]
[1754233948936,1.59041,3461.5,3461.4,1.0569]
[1754233949240,3.19531,3461.5,3461.4,1.9796]
[1754233950138,2.2594,3461.6,3461.5,2.5265]
[1754233950443,0.6625,3461.6,3461.5,3.10429]
[1754233950643,1.0126,3461.8,3461.7,1.63466]
[1754233950836,2.6175,3461.8,3461.7,2.5254]
[1754233951433,1.6049,3461.7,3461.6,0.3831]
[1754233951639,2.6175,3461.7,3461.4,3.2078]
[1754233951840,2.6175,3461.7,3460.4,1.44492]
[1754233951841,1.8679,3460.6,3460.5,3.5162]
[1754233952239,1.8679,3460.6,3460.5,0.76]
[1754233952845,0.537,3460.1,3460.0,3.2078]
[1754233953047,1.1309,3460.1,3460.0,3.2078]
[1754233953438,1.1309,3460.1,3460.0,3.6594]
[1754233953639,1.1309,3460.1,3460.0,4.7385]
[1754233953947,1.1129,3460.1,3460.0,4.7385]
[1754233954243,0.537,3461.1,3460.9,0.9838]
[1754233954437,1.44416,3462.3,3460.0,3.2078]
[1754233954438,0.018,3461.5,3461.2,0.57784]
[1754233954639,1.1129,3461.4,3461.2,1.5307]
[1754233954842,1.1129,3461.3,3461.2,1.0791]
[1754233955436,1.1309,3461.3,3461.2,0.4516]
[1754233955633,0.537,3461.2,3460.9,0.9838]
[1754233955836,0.018,3461.1,3461.0,0.4516]
[1754233956232,0.018,3461.1,3460.8,0.57791]
[1754233956433,1.1309,3460.7,3460.5,0.4516]
[1754233956634,1.1129,3460.6,3460.5,0.4516]
[1754233956842,1.1129,3460.6,3460.5,0.9838]
[1754233957148,1.1309,3460.4,3460.3,3.6594]
[1754233957442,1.1309,3460.4,3460.3,4.7385]
[1754233957647,1.1129,3460.4,3460.3,4.7385]
[1754233958547,1.1129,3460.8,3460.7,0.5322]
[1754233958741,1.1129,3460.8,3460.7,0.9838]
[1754233958943,1.1129,3460.8,3460.7,1.5307]
[1754233960238,0.537,3461.0,3460.9,1.5307]
[1754233960538,1.1129,3461.0,3460.9,1.5307]
[1754233960745,1.1309,3461.0,3460.9,0.4516]
[1754233960945,1.1129,3460.7,3460.4,1.02957]
[1754233961246,1.1309,3460.5,3460.4,1.02957]
[1754233962435,1.1309,3460.5,3460.4,0.4516]
[1754233963840,1.8391,3460.5,3460.4,1.1431]
[1754233964141,1.867,3460.5,3460.4,1.1431]
[1754233964952,0.934,3460.5,3460.4,2.6213]
[1754233965340,1.8291,3460.5,3460.4,2.6213]
[1754233967245,0.7172,3460.5,3460.4,2.6213]
[1754233967443,0.3591,3461.0,3460.9,0.94559]
[1754233967644,2.57740191,3461.0,3460.9,2.6621]
[1754233968755,1.7924,3461.0,3460.9,2.6621]
[1754233968955,1.8377,3461.0,3460.9,1.5516]
[1754233969557,1.8377,3461.0,3460.9,1.1839]
[1754233969768,2.62377562,3461.0,3460.9,1.1839]
[1754233970058,0.7511,3460.7,3460.6,1.38653]
[1754233970252,1.8377,3460.7,3460.6,1.76183]
[1754233971351,1.8377,3460.7,3460.6,2.12953]
[1754233971758,1.8377,3460.7,3460.6,2.66363]
[1754233972258,1.7924,3460.7,3460.6,3.24003]
[1754233972466,1.2592,3461.0,3460.9,2.66359]
[1754233972659,1.7924,3461.0,3460.9,3.23999]
[1754233973260,1.8203,3461.0,3460.9,2.0857]
[1754233973460,1.8377,3461.0,3460.9,1.1839]
[1754233974166,1.8377,3461.0,3460.9,0.8086]
[1754233974661,1.8377,3460.8,3460.6,0.57793]
[1754233974867,1.8377,3460.7,3460.6,2.12953]
[1754233975069,1.8377,3460.7,3460.6,2.66363]
[1754233976263,1.7924,3460.7,3460.6,3.24003]
[1754233976469,0.3641,3460.7,3460.6,3.24003]
[1754233976665,1.7924,3461.0,3460.9,1.64139]
[1754233976967,0.3641,3461.0,3460.9,3.23999]
[1754233977263,0.7232,3461.1,3461.0,1.6399]
[1754233977470,1.8098,3461.1,3461.0,2.6621]
[1754233977865,1.7924,3461.1,3461.0,1.5516]
[1754233978059,1.7924,3461.3,3461.2,2.6621]
[1754233979767,0.536,3461.3,3461.2,2.6621]
[1754233979969,0.0174,3462.1,3461.8,0.57774]
[1754233980174,1.8377,3462.0,3461.9,1.5516]
[1754233980471,1.8377,3462.0,3461.9,0.3205]
[1754233980970,1.8377,3462.0,3461.9,2.6621]
[1754233981365,0.57765,3462.4,3462.0,0.57771]
[1754233981561,1.32875,3462.4,3462.3,0.6958]
[1754233981775,1.32875,3462.4,3462.3,1.1839]
[1754233982068,0.8973,3462.4,3462.3,2.128]
[1754233982269,0.57761,3462.6,3462.4,0.4881]
[1754233982573,4.5123,3462.7,3462.2,1.64117]
[1754233982574,0.3641,3462.3,3462.2,1.64117]
[1754233982776,1.7924,3462.3,3462.2,3.23977]
[1754233983175,0.3641,3462.4,3462.3,2.2944]
[1754233983366,1.0866,3462.6,3462.0,3.2078]
[1754233983367,1.8098,3462.6,3462.5,1.0635]
[1754233983671,1.8098,3462.6,3462.5,2.6621]
[1754233984374,1.8377,3462.6,3462.5,2.6621]
[1754233984573,1.8377,3462.6,3462.5,2.0857]
[1754233984974,1.8377,3462.6,3462.5,1.5516]
[1754233985169,1.7924,3462.6,3462.5,1.5516]
[1754233985378,1.7924,3462.6,3462.5,2.6621]
[1754233985868,1.8098,3462.6,3462.5,2.6621]
[1754233986074,1.7924,3462.6,3462.5,2.6621]
[1754233988670,1.8098,3462.6,3462.5,2.6621]
[1754233989974,1.7924,3462.6,3462.5,2.6621]
[1754233990680,1.8098,3462.6,3462.5,2.6621]
[1754233991070,1.8377,3462.6,3462.5,2.6621]
[1754233991376,1.8377,3462.6,3462.5,1.5516]
[1754233991774,1.8377,3462.6,3462.5,0.8086]
[1754233991979,0.7232,3461.7,3461.6,3.6959]
[1754233992174,1.8377,3461.7,3461.6,4.7594]
[1754233992367,1.7924,3461.7,3461.6,3.2078]
[1754233992567,1.8377,3461.7,3461.6,3.2078]
[1754233992877,7.29563757,3461.7,3461.6,2.6286]
[1754233993074,0.7511,3461.3,3461.2,4.2713]
[1754233993377,1.8377,3461.3,3461.2,5.2935]
[1754233994077,0.734,3461.8,3461.7,2.0007]
[1754233994277,1.3048,3461.8,3461.7,2.0007]
[1754233994676,1.8548,3461.8,3461.7,2.0007]
[1754233994877,0.734,3461.6,3461.5,0.7771]
[1754233995081,1.8548,3461.6,3461.5,0.7771]
[1754233996580,1.8548,3461.3,3461.2,4.6888]
[1754233996777,1.33012,3460.7,3460.6,0.3023]